{"text_format":"1","workbook":"xlsx","n_sheets":1,"sheets":["Лист1"],"not_rendered":{"charts":0,"images":0,"macros":0,"external_links":0,"defined_names":2,"comments":0,"pivot_tables":0},"unopened":[],"bounds":{"document_bytes":16777216,"sheet_cells":100000,"rows_first":2000,"rows_last":500,"rows_between":2000,"halvings":0,"cell_chars":16384,"cell_head_chars":4096},"cells_cut":0,"cells_raw":0,"read":"whole","date_system":"1900"}

{"sheet":"Лист1","index":0,"n_rows":106,"n_cols":20,"rows_kept":106,"cut":false,"hidden":false,"merged":[[103,0,103,4],[81,0,83,0],[55,1,57,1],[55,0,57,0],[55,4,57,4],[58,0,58,4],[81,4,84,4],[91,4,92,4],[91,3,92,3],[91,2,92,2],[91,0,92,0],[59,0,63,0],[62,2,63,2],[62,3,63,3],[59,4,63,4],[59,1,63,1],[91,12,92,12],[91,5,92,5],[91,6,92,6],[91,7,92,7],[91,8,92,8],[91,9,92,9],[91,10,92,10],[82,3,83,3],[45,4,47,4],[67,5,68,5],[67,3,68,3],[67,6,68,6],[67,7,68,7],[72,4,74,4],[91,11,92,11],[62,9,63,9],[30,12,31,12],[22,13,25,13],[62,5,63,5],[62,6,63,6],[62,7,63,7],[55,13,57,13],[38,4,43,4],[38,13,43,13],[40,2,41,2],[40,3,41,3],[33,13,37,13],[36,2,37,2],[45,13,47,13],[30,8,31,8],[30,9,31,9],[36,6,37,6],[36,7,37,7],[36,8,37,8],[36,9,37,9],[33,4,37,4],[33,2,34,2],[33,3,34,3],[27,0,31,4],[19,0,25,0],[19,1,25,1],[62,10,63,10],[62,11,63,11],[62,12,63,12],[62,8,63,8],[19,12,20,12],[19,13,21,13],[22,2,24,2],[22,3,24,3],[22,5,24,5],[22,6,24,6],[30,5,31,5],[19,11,20,11],[19,2,21,2],[19,3,21,3],[19,4,25,4],[19,5,20,5],[22,11,24,11],[22,12,24,12],[30,6,31,6],[30,7,31,7],[30,10,31,10],[30,11,31,11],[11,4,16,4],[22,7,24,7],[22,8,24,8],[22,9,24,9],[22,10,24,10],[19,6,20,6],[19,7,20,7],[19,8,20,8],[19,9,20,9],[19,10,20,10],[11,13,16,13],[13,2,14,2],[17,6,17,13],[0,12,0,13],[1,12,1,13],[2,12,2,13],[3,0,4,13],[6,0,9,0],[6,1,9,1],[6,2,9,2],[6,3,9,3],[6,4,9,4],[6,5,9,5],[6,6,7,12],[6,13,9,13],[8,6,9,6],[8,7,9,7],[8,8,9,8],[8,9,9,9],[8,10,9,10],[8,11,9,11],[8,12,9,12],[11,0,16,0],[11,1,16,1],[33,1,37,1],[33,5,34,5],[67,8,68,8],[67,9,68,9],[67,10,68,10],[67,11,68,11],[67,12,68,12],[48,0,50,4],[51,0,51,4],[33,7,34,7],[33,8,34,8],[33,9,34,9],[33,10,34,10],[33,11,34,11],[33,12,34,12],[36,10,37,10],[36,11,37,11],[36,12,37,12],[38,0,43,0],[38,2,39,2],[33,0,37,0],[33,6,34,6],[36,3,37,3],[36,5,37,5],[81,13,84,13],[82,2,84,2],[85,0,85,4],[87,1,89,1],[87,0,89,0],[87,4,89,4],[87,13,89,13],[64,1,69,1],[64,0,69,0],[64,13,69,13],[64,4,69,4],[70,0,74,0],[70,1,74,1],[75,13,79,13],[75,1,79,1],[70,4,71,4],[70,13,71,13],[72,13,74,13],[75,0,79,0],[75,4,79,4],[91,13,92,13],[93,0,99,4],[100,0,100,4],[27,13,31,13],[59,13,63,13],[44,1,47,1],[44,0,47,0],[48,13,50,13],[52,0,54,0],[52,1,54,1],[52,13,54,13],[52,4,54,4],[82,5,84,5],[82,12,84,12],[82,11,84,11],[82,10,84,10],[82,9,84,9],[82,8,84,8],[82,7,84,7],[82,6,84,6],[93,13,99,13],[97,12,98,12],[80,0,80,4],[81,1,84,1],[97,11,98,11],[97,10,98,10],[97,9,98,9],[97,8,98,8],[97,7,98,7],[97,6,98,6],[97,5,98,5],[90,0,90,4],[91,1,92,1]]}
[null,null,null,null,null,null,null,null,null,null,null,null,"Додаток 2"]
[null,null,null,null,null,"               ",null,null,null,null,null,null,"до рішення міської ради"]
[null,null,null,null,null,null,null,null,null,null,null,null,"16.06.2022 №1339"]
["Перелік завдань і заходів  Програми розвитку та утримання житлово-комунального                                                                                                                     господарства міста на період 2017–2022 років"]
[]
[]
["№ п/п","Назва напряму діяльності (пріори-тетні завдання) ","Перелік заходів програми ","Строк, роки ","Виконавці ","Джерела фінансу-вання ","Орієнтовні обсяги потреби в фінансуванні (вартість),  тис. грн, у тому числі:",null,null,null,null,null,null,"Очікуваний результат "]
[]
[null,null,null,null,null,null,"2017 рік","2018 рік ","2019 рік","2020 рік","2021 рік","2022 рік","Усього"]
[]
[1,2,3,4,5,6,7,8,9,10,11,12,13,14]
[1,"Утри-мання, ремонт, рекон-струкція жит-лового фонду","1.1. Капіталь-ний ремонт ліфтів","2017-2022","Департа-мент роз-витку інф-раструк-тури міста виконкому Криворізь-кої міської ради","Бюджет Криво-різької міської територіальної громади",{"$f":"20000+8000+10000","v":38000},74700,100000,200000,240000,290000,{"$f":"G12+H12+I12+J12+K12+L12","v":942700}," Гарантування    умов   безпеч-ного та комфо-ртного про-живання насе-лення. Надання  об'єднанням співвласників багатоквартир-ного будинку передбаченої чинним зако-нодавством Ук-раїни технічної та/ або іншої документації на житлові бу-динки. Безпечне  користування   ліфтами  меш-канцями бага-токвартирних  будинків, їх "]
[null,null,"1.2. Експертне обстеження ліфтів","2017-2022",null,{"$f":"F12","v":"Бюджет Криво-різької міської територіальної громади"},100,120,150,100,120,150,{"$f":"G13+H13+I13+J13+K13+L13","v":740}]
[null,null,"1.3. Капіталь-ний, поточний ремонт та реконструкція житлового фонду","2017-2022",null,{"$f":"F12","v":"Бюджет Криво-різької міської територіальної громади"},50000,{"$f":"55000-1700","v":53300},60000,20000,45000,80000,308300]
[null,null,null,"2017-2022",null,"Власні надхо-дження",200,200,200,50,40,30,720]
[null,null,"1.4. Охорона об'єктів житлового фонду","2017-2022",null,{"$f":"F14","v":"Бюджет Криво-різької міської територіальної громади"},780,1000,1500,1700,2200,2100,9280]
[null,null,"1.5. Заміна адресних вивісок","2017-2022",null,{"$f":"F16","v":"Бюджет Криво-різької міської територіальної громади"},1500,0,0,600,600,600,3300]
[null,null,null,null,null,null,"                                         Продовження додатка 2"]
[1,2,3,4,5,6,7,8,9,10,11,12,13,14]
[null,null,"1.6. Заходи з виконання доручень виборців депутатами Дніпро-петровської обласної ради ","2017-2022",null,"Субвенція з об-ласного бюдже-ту бюджетам міст, районів та об’єднанням територіальних   громад на вико-нання дору-чень виборців депутатами обласної ради ",2000,2000,3290,"*","*","*",{"$f":"G20+H20+I20","v":7290},"належна технічна                                        експлуатація та      безперебійна ро-бота. Продовження   терміну експлуатації ліфтів. Заміна табличок з назвами топонімів на будинках на нові           "]
[]
[null,null,null,null,null,{"$f":"F27","v":"Бюджет Криво-різької міської територіальної громади"},2000,2000,2000,0,0,0,{"$f":"G22+H22+I22+J22+K22+L22","v":6000}]
[null,null,"1.7. Фінансу-вання пере-можців обласного конкурсу мікропроєктів з енергоефек-тивності та енергозбере-ження серед органів самоорганізації населення й ОСББ","2017-2022",null,"Субвенція з об-ласного бюдже-ту до місцевих бюджетів на фінансування переможців обласного конкурсу мік-ропроєктів з енергоефек-тивності та енерго-збереження серед  органів самоорга-нізації населення та ОСББ",50,200,499.17,"*","*","*",{"$f":"G23+H23+I23","v":749.17000000000007},"Підвищення рівня надання населенню житлово-кому-нальних послуг відповідно до вимог національних стандартів, гармонізованих з міжнародними або регіональними"]
[null,null,null,null,null,null,null,0,0]
[null,null,null,null,null,null,null,0,0]
[null,null,"1.8. Послуги з приєднання електроуста-новок до електричних мереж","2017-2022",null,{"$f":"F16","v":"Бюджет Криво-різької міської територіальної громади"},120,0,0,0,0,0,{"$f":"G26+H26+I26+J26+K26+L26","v":120}]
[null,null,"1.9. Створення належних умов для проживан-ня внутрішньо-переміщених осіб у гурто-житках міста",2021,null,{"$f":"F26","v":"Бюджет Криво-різької міської територіальної громади"},0,0,0,0,272.14999999999998,0,{"$f":"G27+H27+I27+J27+K27+L27","v":272.14999999999998}]
["Усього",null,null,null,null,{"$f":"F27","v":"Бюджет Криво-різької міської територіальної громади"},{"$f":"G12+G13+G14+G16+G17+G22+G26+G27","v":92500},131120,163650,222400,288192.15000000002,372850,1270712.1499999999]
[null,null,null,null,null,"Власні надхо-дження",{"$f":"G15","v":200},200,200,50,40,30,720]
[null,null,null,null,null,"Субвенція з об-ласного бюдже-ту бюджетам міст, районів та об’єднанням територіальних   громад на вико-нання дору-чень виборців депутатами обласної ради",{"$f":"G20","v":2000},2000,3290,"*","*","*",7290]
[null,null,null,null,null,"Субвенція з обласного бюджету до місцевих бюджетів на фінансування переможців обласного конкурсу мікропроєктів з енергоефек-",{"$f":"G23","v":50},{"$f":"H23","v":200},{"$f":"I23","v":499.17},"*","*","*",{"$f":"G31+H31+I31","v":749.17000000000007}]
[]
[null,null,null,null,null,"тивності та енерго-збереження серед  органів самоорганізації населення та ОСББ"]
[2,"Комуналь-не майно","2.1. Оформ-лення висно-вку спеціалі-зованої органі-зації про мож-ливість (немо-жливітіь) пода-льшої експлуа-тації основних засобів, інших необоротних матеріальних активів, проведення експертиз","2017-2022","Департа-мент роз-витку інф-раструктури міста виконкому Криворізь-кої міської ради",{"$f":"F27","v":"Бюджет Криво-різької міської територіальної громади"},15,15,15,20,74,200,{"$f":"G34+H34+I34+J34+K34+L34","v":339}]
[]
[null,null,"2.2. Інвентари-зація, технічна інвентаризація, оцінка майна, об’єктів (елементів) благоустрою з виготовленням технічного паспорта","2017-2022",null,{"$f":"F34","v":"Бюджет Криво-різької міської територіальної громади"},725,725,725,{"$f":"400+11.66","v":411.66},400,650,3636.66]
[null,null,"2.3. Знесення (розбирання) об'єктів нерухомого майна","2017-2022",null,{"$f":"F36","v":"Бюджет Криво-різької міської територіальної громади"},1000,750,500,2000,4000,3000,11250]
[]
[null,null,"2.4. Придбан-ня в комуна-льну власність житла для надання в тимчасове користування внутрішньо переміщеним особам та послуги з оформлення відповідних документів","2017-2022",null,"Субвенція з де-ржавного бюд-жету місцевим бюджетам на здійснення за-ходів щодо під-тримки терито-рій, що зазнали негативного  впливу внаслі-док  збройного конфлікту на сході України",0,2000,0,0,0,0,2000]
[null,null,null,2018,null,{"$f":"F36","v":"Бюджет Криво-різької міської територіальної громади"},0,{"$f":"2140","v":2140},0,0,0,0,2140]
[null,null,"2.5. Сплата  земельного податку","2017-2022",null,"Власні надхо-дження",500,600,700,700,2000,250,4750]
[null,null,null,null,null,{"$f":"F40","v":"Бюджет Криво-різької міської територіальної громади"},{"$f":"547.35+94.47","v":641.82000000000005},0,0,0,0,0,641.82000000000005]
[null,null,"2.6. Витрати, пов'язані із судовими процесами, оголошеннями за судовими справами, юридичними та поштовими послугами","2017-2022",null,{"$f":"F42","v":"Бюджет Криво-різької міської територіальної громади"},40,40,40,20,{"$f":"50+40","v":90},700,930]
[null,null,"2.7. Висвітлен-ня діяльності департаменту розвитку інфра-структури міс-та виконкому ","2017-2022",null,"Бюджет Криво-різької міської територіальної громади",190,190,190,190,199,190,1149]
[null,null,"Криворізької міської ради в засобах масо-вої інформації"]
[null,null,"2.8. Реєстрація та перереєстра-ція автотранс-порту (узяття на облік та зняття з нього)","2017-2022",null,{"$f":"F44","v":"Бюджет Криво-різької міської територіальної громади"},10,10,10,11,50,25,{"$f":"G46+H46+I46+J46+K46+L46","v":116}]
[null,null,"2.9. Послуги з розробки про-ектів землеуст-рою щодо від-ведення земель-них ділянок у постійне корис-тування під об´єкти нерухомості","2017-2022",null,"Бюджет Криво-різької міської територіальної громади",0,0,150,150,100,100,500]
[null,null,"2.10. Прид-бання техніки та обладнання, предметів довгостроко-вого користу-вання ","2017-2022",null,"Бюджет Криво-різької міської територіальної громади",0,0,0,16000.8,0,0,{"$f":"J48","v":16000.8}]
["Усього",null,null,null,null,"Бюджет Криво-різької міської територіальної громади",{"$f":"G47+G46+G44+G43+G37+G36+G34+G42+G40+G39","v":2621.82},{"$f":"H47+H46+H44+H43+H37+H36+H34+H42+H40+H39","v":5870},{"$f":"I47+I46+I44+I43+I37+I36+I34+I42+I40+I39","v":1630},{"$f":"J47+J46+J44+J43+J37+J36+J34+J42+J40+J39+J48","v":18803.46},{"$f":"K47+K46+K44+K43+K37+K36+K34+K42+K40+K39","v":4913},{"$f":"L47+L46+L44+L43+L37+L36+L34+L42+L40+L39","v":4865},{"$f":"M47+M46+M44+M43+M37+M36+M34+M42+M40+M39+M48","v":38703.279999999999}]
[null,null,null,null,null,"Власні надхо-дження",{"$f":"G41","v":500},600,700,700,2000,250,{"$f":"G50+H50+I50+J50+K50+L50","v":4750}]
[null,null,null,null,null,"Субвенція з де-ржавного бю-джету місцевим бюджетам на здійснення за-"]
[null,null,null,null,null,"ходів щодо підтримки територій, що зазнали негативного впливу внаслідок збройного конфлікту на сході України впливу внаслідок збройного конфлікту на сході Укрваїни ",{"$f":"G39","v":0},2000,0,0,0,0,{"$f":"G52+H52+I52+J52+K52+L52","v":2000}]
[3,"Санітарна очистка міста","3.1. Оформлен-ня права корис-тування земе-льними ділян-ками під полі-гонами звалищ сміття міста","2017-2020","Департа-мент роз-витку інф-раструктури міста виконкому Криворізь-кої міської ради",{"$f":"F49","v":"Бюджет Криво-різької міської територіальної громади"},190,0,0,1000,1000,0,{"$f":"G53+H53+I53+J53+K53+L53","v":2190},"Покращення еко-логічної ситуації в місті (санітарне очищення) "]
[null,null,"3.2. Розробка проєктно-кошторисної документації на рекультивацію полігону для складування твердих побутових відходів",2022,null,"Бюджет Криво-різької міської територіальної громади",0,0,0,0,0,1000,1000]
[null,null,"3.3. Ліквідація стихійних звалищ","2017-2022",null,{"$f":"F53","v":"Бюджет Криво-різької міської територіальної громади"},190,300,1261,1000,1500,2000,6251]
[null,null,"3.4.Придбання та ремонт кон-тейнерних сис-тем для розмі-щення контей-нерів для збору твердих побуто-вих відходів","2017-2022",null,{"$f":"F55","v":"Бюджет Криво-різької міської територіальної громади"},0,2500,5000,15000,15000,15000,52500]
[null,null,"3.5. Утриман-ня, поточний, капітальний ремонт контейнерних майданчиків","2017-2022",null,{"$f":"F56","v":"Бюджет Криво-різької міської територіальної громади"},0,0,0,15000,15000,20000,50000]
[null,null,"3.6. Коригу-вання схеми санітарної очистки міста",2021,null,"Бюджет Криво-різької міської територіальної громади",0,0,0,0,300,320,620]
["Усього",null,null,null,null,"Бюджет Криво-різької міської територіальної громади",{"$f":"G58+G57+G56+G55+G54+G53","v":380},2800,6261,32000,32800,38320,112561]
[4,"Підтрим-ка  кому-нальних підпри-ємств - надавачів послуг з теплопос-тачання, водопостачання та водовідве-дення","4.1. Фінансова підтримка","2017-2022","Департа-мент роз-витку інф-раструктури міста виконкому Криворізь-кої міської ради - голо-вний роз-порядник коштів, Ко-мунальне  підприємс-тво тепло-вих мереж «Криворіж-тепломе-режа» - одержувач ","Бюджет Криво-різької міської територіальної громади",12000,80000,{"$f":"40000+4166.29+20000","v":64166.29},{"$f":"25000+12000","v":37000},55000,0,248166.29,"Економія теплової та електричної енергії, природного газу, покращення якості  виконання робіт на системі тепло- постачання. Покращення якості надання послуг з водопостачання та водо- відведення. Зни-ження травма-тизму населен-"]
[null,null,"4.2 Погашення заборгованос-ті за теплову енергію",2022,null,"Бюджет Криво-різької міської територіальної громади",0,0,0,0,0,75000,{"$f":"G61+H61+I61+J61+K61+L61","v":75000}]
[null,null,"4.3. Придбан-ня теплоізо-ляційних матеріалів","2017-2022",null,{"$f":"F60","v":"Бюджет Криво-різької міської територіальної громади"},5000,5000,5000,0,3000,3000,21000]
[null,null,"4.4. Придбан-ня блочних автоматизова-них пальників з частотними перетворюва-чами","2017-2022",null,"Бюджет Криво-різької міської територіальної громади",5000,6000,5000,0,0,0,16000]
[]
[null,null,"4.5. Реконст-рукція схеми теплопоста-чання","2017-2022","коштів",{"$f":"F63","v":"Бюджет Криво-різької міської територіальної громади"},1500,0,0,0,0,0,1500,"ня, запобігання нещасним випадкам. Економія енергоресурсів"]
[null,null,"4.6. Демонтаж димової труби котельні «Прорізна, 87»","2017-2022",null,"Бюджет Криво-різької міської територіальної громади",1500,0,0,0,0,0,1500]
[null,null,"4.7. Поповнен-ня статутного  капіталу  на  придбання спецтехніки, обладнання  та предметів довгостроко-вого користування","2017-2022",null,"Бюджет Криво-різької міської територіальної громади",{"$f":"1420+2450","v":3870},0,0,0,2500,5000,11370]
[null,null,"4.8. Оснащен-ня вузлами комерційного","2017-2022",null,"Бюджет Криво-різької міської  територіальної громади",0,18235,12752.19,0,0,0,30987.190000000002]
[null,null," обліку те-плової енергії житлових будинків, приєднаних до зовнішніх інженерних мереж"]
[null,null,"4.9. Поповнен-ня статутного капіталу  на ви-конання робіт з будівництва, ре-конструкції, ка-пітального ре-монту  коте-лень та  тепло-вих мереж ","2017-2022",null,{"$f":"F66","v":"Бюджет Криво-різької міської територіальної громади"},0,0,10000,0,35000,18000,63000]
[null,null,"4.10. Придбан-ня матеріалів, обладнання (устаткування) для виконання робіт з буді-вництва, реко-нструкції, капі-тального ремо-нту  котелень та  теплових мереж ",2020,null,{"$f":"F67","v":"Бюджет Криво-різької міської територіальної громади"},0,0,0,0,0,0,0]
[null,null,"4.11. Заходи щодо врегулю-вання проблем-них питань в опалювальний період 2021/2022 років, пов'язані з різким зростанням цін  на енергоресурси","2021-2022",null,{"$f":"F71","v":"Бюджет Криво-різької міської територіальної громади"},0,0,0,0,20500,27000,47500]
[null,null,"4.12. Оплата праці та енергоносіїв (електроенегія, вода тощо)","2017-2022","Департа-мент роз-витку інф-раструктури міста виконкому Криворізь-кої міської ради - голо-вний роз-порядник коштів,     Комунальне  ",{"$f":"F71","v":"Бюджет Криво-різької міської територіальної громади"},30000,30000,30000,0,0,90000,180000,"Покращення якості надання послуг з водо-постачання та водовідведення. Зниження тра-вматизму насе-лення, запобі-гання нещасним випадкам. Еко-номія ресурсів"]
[null,null,"4.13. Придбан-ня кришок люків","2017-2022",null,{"$f":"F71","v":"Бюджет Криво-різької міської територіальної громади"},2000,2000,2000,1000,{"$f":"J74*1.05","v":1050},{"$f":"K74*1.05","v":1102.5},9152.5,null,null,null,null,null,null," "]
[null,null,"4.14. Послуги щодо фінан-сового лізингу на придбання спецтехніки","2017-2022",null,{"$f":"F74","v":"Бюджет Криво-різької міської територіальної громади"},14658.87,37280.589999999997,20963.5,0,0,0,72902.959999999992]
[null,null,"4.15.  Капіталь-ний  ремонт, будівництво, реконструкція  мереж водо-постачання та водовідве-дення","2017-2022","підприємс-тво «Кри-вбасводо-канал» - одержувач коштів ",{"$f":"F75","v":"Бюджет Криво-різької міської територіальної громади"},62408.800000000003,0,6476,{"$f":"7026.77+1000+1000","v":9026.77},15000,20000,{"$f":"G76+H76+I76+J76+K76+L76","v":112911.57}]
[null,null,"4.16. Прид-бання мате-ріалів, облад-нання (уста-ткування) для виконання ка-пітальних ре-монтів, будів-ництва, реконс-трукції мереж і споруд водопостачан-ня та водо-відведення","2017-2022",null,{"$f":"F76","v":"Бюджет Криво-різької міської територіальної громади"},10520,13000,17000,{"$f":"3000+267","v":3267},{"$f":"J77*1.05","v":3430.3500000000004},5000,52217.35]
[null,null,"4.17.  Попов-нення статут-ного  капіталу на  придбання спецтехніки, обладнання та   предметів до-вгострокового користування  ","2017-2022",null,"Бюджет Криво-різької міської територіальної громади ",12398.84,0,0,0,0,10000,22398.84]
[null,null,"4.18. Послуги з обслуговуван-ня підвищува-льних насосів холодної води","2017-2022",null,"Бюджет Криво-різької міської територіальної громади",2340,0,0,0,0,0,{"$f":"G79+H79+I79+J79+K79+L79","v":2340}]
[null,null,"4.19. Придбан-ня пожежних гідрантів","2017-2022",null,{"$f":"F79","v":"Бюджет Криво-різької міської територіальної громади"},0,0,0,1000,{"$f":"J80*1.05","v":1050},{"$f":"K80*1.05","v":1102.5},3152.5]
["Усього",null,null,null,null,{"$f":"F80","v":"Бюджет Криво-різької міської територіальної громади"},{"$f":"G60+G62+G63+G65+G66+G67+G68+G70+G71+G72+G73+G74+G75+G76+G77+G78+G79+G80+G61","v":163196.50999999998},{"$f":"H60+H62+H63+H65+H66+H67+H68+H70+H71+H72+H73+H74+H75+H76+H77+H78+H79+H80+H61","v":191515.59},173357.98,51293.770000000004,136530.35,255205,{"$f":"M60+M62+M63+M65+M66+M67+M68+M70+M71+M72+M73+M74+M75+M76+M77+M78+M79+M80+M61","v":971099.2}]
[5,"Заходи,  пов’язані з економіч-ною дія-льністю Комуналь-ного   зак-ладу   «Дитячий оздоровчий табір «Перлина Кри-воріжжя» Криворізь-кої міської ради","5.1. Поповнен-ня статутного капіталу на придбання  обладнання   і предметів довгостроко-вого користування",2017,"Департа-мент роз-витку інф-раструктури міста виконкому Криворізь-кої міської ради - голо-вний роз-порядник коштів, Ко-мунальний заклад «Ди- тячий оздо-ровчий та-бір  «Пер-лина Кри-воріжжя» Криворізь-кої міської ради - одер-жувач коштів ",{"$f":"F81","v":"Бюджет Криво-різької міської територіальної громади"},{"$f":"300-125.1","v":174.9},0,0,0,0,0,{"$f":"G82+H82+I82+J82+K82+L82","v":174.9},"Забезпечення умов для оздоровлення дітей та стабільної роботи Комунального закладу «Дитячий оздоровчий табір   «Перлина Криворіжжя» Криворізької міської ради "]
[null,null,"5.2. Інші  заходи, пов'язані з економічною діяльністю закладу","2017-2018",null,{"$f":"F82","v":"Бюджет Криво-різької міської територіальної громади"},{"$f":"500-156.55","v":343.45},{"$f":"500-343.45+125.1","v":281.64999999999998},0,0,0,0,{"$f":"G83+H83+I83+J83+K83+L83","v":625.09999999999991}]
[]
[]
["Усього",null,null,null,null,{"$f":"F83","v":"Бюджет Криво-різької міської територіальної громади"},{"$f":"G82+G83","v":518.35},{"$f":"H82+H83","v":281.64999999999998},{"$f":"I82+I83","v":0},{"$f":"J82+J83","v":0},0,{"$f":"L82+L83","v":0},{"$f":"G86+H86+I86+J86+K86+L86","v":800}]
[6,"Заходи,  пов’язані з економіч-ною дія-льністю Комуналь-ного  під-приємства «Кривбас-","6.1. Заходи, пов´язані з за-лученням кре-дитних ресур-сів на впрова-дження проєк-тів з енерго-ефективності","2017-2022"," Департа-мент роз-витку інф-раструктури міста виконкому Криворізь-кої міської  ради -",{"$f":"F86","v":"Бюджет Криво-різької міської територіальної громади"},1000,1000,1000,0,0,0,{"$f":"G87+H87+I87+J87+K87+L87","v":3000},"Реалізація програм пріоритетних інвестицій для підвищення енергоефектив-ності  грома-дських будівель"]
[null,"теплоенер-го» Криворізь-кої міської ради","6.2. Поповнен-ня статутного капіталу на при-дбання  облад-нання і предме-тів довгостро-кового користування","2017-2022","головний розпоря-дник коштів, Комунальне підприєм-ство «Кри-вбастеп-лоенерго» Криворізь-кої міської ради - одержувач коштів","Бюджет Криво-різької міської територіальної громади",100,0,100,69,0,0,{"$f":"G88+H88+I88+J88+K88+L88","v":269}]
[null,null,"6.3 Інші  заходи, пов'язані з економічною діяльністю підприємства","2017-2022",null,"Бюджет Криво-різької міської територіальної громади",0,0,3000,{"$f":"414","v":414},0,0,{"$f":"G89+H89+I89+J89+K89+L89","v":3414}]
[null,null,"6.4. Фінансова підтримка","2017-2022",null,"Бюджет Криво-різької міської територіальної громади",0,0,0,1000,{"$f":"1980","v":1980},0,{"$f":"G90+H90+I90+J90+K90+L90","v":2980}]
["Усього",null,null,null,null,"Бюджет Криво-різької міської територіальної громади",{"$f":"G87+G88","v":1100},{"$f":"H87+H88","v":1000},{"$f":"I87+I88+I89","v":4100},{"$f":"J87+J88+J89+J90","v":1483},{"$f":"K90","v":1980},{"$f":"L87+L88+L89","v":0},{"$f":"M87+M88+M89+M90","v":9663}]
[7,"Заходи,  пов’язані з економіч-ною дія-льністю  Комуналь-ного  під-приємства  «Сансер-віс» Криворізь-кої міської ради"," Заходи, пов'язані з реалізацією проєкту «Нове будівництво комплексу з перероблення, знешкодження та складування твердих побутових відходів у Металургійно-му районі міста Кривого Рогу Дніпропетров-ської області»  ","2020-2022","Департа-мент роз-витку інф-раструктури міста виконкому Криворізь-кої міської ради,  Ко-мунальне підприєм-ство «Сан-сервіс»» Криворізь-кої міської ради - одержувач коштів","Бюджет Криво-різької міської територіальної громади",0,0,0,300,600,9587.73,{"$f":"G92+H92+I92+J92+K92+L92","v":10487.73}]
[]
["Усього за Програмою, у тому числі",null,null,null,null,"Усього",{"$f":"G95+G96+G97+G100+G98","v":263016.68},{"$f":"H95+H96+H97+H100+H98","v":335387.24},{"$f":"I95+I96+I97+I100+I98","v":353188.98},{"$f":"J95+J96++J98","v":327030.23},{"$f":"K95+K96+K98","v":467055.5},{"$f":"L95+L96+L98","v":681107.73},{"$f":"M95+M96+M97+M98+M100","v":2426786.36}]
[null,null,null,null,null,{"$f":"F92","v":"Бюджет Криво-різької міської територіальної громади"},{"$f":"G28+G49+G59+G81+G86+G91+G92","v":260316.68},332587.24,348998.98,326280.23,465015.5,680827.73,2414026.36]
[null,null,null,null,null,"Власні надхо-дження",{"$f":"G29+G50","v":700},800,900,750,2040,280,{"$f":"SUM(G96:L96)","v":5470}]
[null,null,null,null,null,"Субвенція з об-ласного бюдже-ту бюджетам міст, районів та об’єднанням територіальних   громад на вико-нання дору-чень виборців депутатами обласної ради ",{"$f":"G30","v":2000},2000,3290,"*","*","*",7290]
[null,null,null,null,null,"Субвенція з де-ржавного бю-джету місцевим бюджетам на здійснення за-ходів щодо під-тримки терито-рій, що зазнали негативного  впливу внаслі-док  збройного конфлікту на сході України",{"$f":"G51","v":0},{"$f":"H51","v":0},{"$f":"I51","v":0},0,0,0,{"$f":"M51","v":0}]
[]
[null,null,null,null,null,"Субвенція з обласного бюджету до місцевих бюджетів на фінансування ",{"$f":"G33","v":0},0,0,0,0,0,0]
[null,null,null,null,null,"переможців обласного конкурсу мік-ропроєктів з енергоефек-тивності та енерго-збереження серед  органів самоорга-нізації населення та ОСББ"]
[]
["* Примітка: Забезпечення фінансового ресурсу в межах обсягів, передбачених в обласному бюджеті на відповідний бюджетний рік."]
["Керуюча справами виконкому ",null,null,null,null,null,"                           Олена ШОВГЕЛЯ"]
[]
[null,null,null,null,null,"   ","                                          "]